[Event "Titled Tuesday Blitz May 24 Early 2022"]
[White "Iljin, Timofey"]
[Black "Legenia, Artem"]
[WhiteFideId "14110180"]
[BlackFideId "14136945"]
[WhiteElo "2404"]
[BlackElo "1936"]
[Result "0-1"]
[Round "08"]
[TimeControl "180+1"]
[Date "2022.05.25"]
[WhiteClock "0:00:01"]
[BlackClock "0:00:48"]

1. e4 {[%clk 0:03:00]}  g6 {[%clk 0:02:52]} 2. d4 {[%clk 0:03:00]}  Bg7 {[%clk 0:02:53]} 3. h4 {[%clk 0:03:01]}  h6 {[%clk 0:02:52]} 4. g4 {[%clk 0:03:00]}  d5 {[%clk 0:02:52]} 5. e5 {[%clk 0:03:00]}  h5 {[%clk 0:02:52]} 6. g5 {[%clk 0:02:55]}  Bg4 {[%clk 0:02:51]} 7. f3 {[%clk 0:02:54]}  Bf5 {[%clk 0:02:51]} 8. Bh3 {[%clk 0:02:53]}  Bxh3 {[%clk 0:02:50]} 9. Nxh3 {[%clk 0:02:50]}  e6 {[%clk 0:02:51]} 10. c4 {[%clk 0:02:50]}  dxc4 {[%clk 0:02:49]} 11. Qa4+ {[%clk 0:02:49]}  c6 {[%clk 0:02:50]} 12. Qxc4 {[%clk 0:02:50]}  Ne7 {[%clk 0:02:48]} 13. Nc3 {[%clk 0:02:50]}  Nf5 {[%clk 0:02:49]} 14. Ne4 {[%clk 0:02:47]}  O-O {[%clk 0:02:38]} 15. f4 {[%clk 0:02:35]}  Na6 {[%clk 0:02:21]} 16. Nhf2 {[%clk 0:02:32]}  Qxd4 {[%clk 0:02:17]} 17. Qe2 {[%clk 0:02:32]}  Rad8 {[%clk 0:02:07]} 18. Bd2 {[%clk 0:02:28]}  Nb4 {[%clk 0:02:03]} 19. Bc3 {[%clk 0:02:23]}  Nd3+ {[%clk 0:01:55]} 20. Kf1 {[%clk 0:02:23]}  Qe3 {[%clk 0:01:40]} 21. Rh3 {[%clk 0:02:08]}  Qxe2+ {[%clk 0:01:39]} 22. Kxe2 {[%clk 0:02:09]}  Nxf4+ {[%clk 0:01:38]} 23. Kf1 {[%clk 0:02:00]}  Nxh3 {[%clk 0:01:37]} 24. Nxh3 {[%clk 0:02:01]}  Nxh4 {[%clk 0:01:31]} 25. Ke2 {[%clk 0:02:00]}  Nf5 {[%clk 0:01:27]} 26. Nf4 {[%clk 0:02:00]}  Nd4+ {[%clk 0:01:23]} 27. Ke3 {[%clk 0:01:59]}  Nc2+ {[%clk 0:01:23]} 28. Ke2 {[%clk 0:01:59]}  Nxa1 {[%clk 0:01:22]} 29. Nd6 {[%clk 0:01:56]}  Rd7 {[%clk 0:01:21]} 30. Kd1 {[%clk 0:01:53]}  Rfd8 {[%clk 0:01:18]} 31. Kc1 {[%clk 0:01:54]}  Bxe5 {[%clk 0:01:06]} 32. Bxe5 {[%clk 0:01:49]}  Rxd6 {[%clk 0:01:06]} 33. b4 {[%clk 0:01:45]}  Rd1+ {[%clk 0:01:05]} 34. Kb2 {[%clk 0:01:45]}  R8d2+ {[%clk 0:01:03]} 35. Ka3 {[%clk 0:01:45]}  Nc2+ {[%clk 0:01:00]} 36. Ka4 {[%clk 0:01:45]}  Ne3 {[%clk 0:00:57]} 37. a3 {[%clk 0:01:39]}  Nd5 {[%clk 0:00:57]} 38. Nxd5 {[%clk 0:01:22]}  Rxd5 {[%clk 0:00:55]} 39. Bb8 {[%clk 0:01:23]}  h4 {[%clk 0:00:52]} 40. Bxa7 {[%clk 0:01:21]}  h3 {[%clk 0:00:52]} 41. Bb8 {[%clk 0:01:22]}  Rd6 {[%clk 0:00:53]} 42. Ka5 {[%clk 0:01:19]}  h2 {[%clk 0:00:53]} 43. Bxd6 {[%clk 0:01:20]}  Rxd6 {[%clk 0:00:52]} 44. Kb6 {[%clk 0:01:21]}  h1=Q {[%clk 0:00:52]} 45. Kxb7 {[%clk 0:01:22]}  Qf3 {[%clk 0:00:52]} 46. Kb6 {[%clk 0:01:23]}  Qxa3 {[%clk 0:00:52]} 47. b5 {[%clk 0:01:22]}  cxb5+ {[%clk 0:00:52]} 48. Kc7 {[%clk 0:01:23]}  Qc5+ {[%clk 0:00:51]} 49. Kb7 {[%clk 0:01:24]}  Rb6+ {[%clk 0:00:51]} 50. Ka7 {[%clk 0:01:19]}  Qc7+ {[%clk 0:00:51]} 51. Ka8 {[%clk 0:00:01]}  Ra6# {[%clk 0:00:48]} 0-1


[Site "https://www.chess.com"]

[Event "Titled Tuesday Blitz May 24 Early 2022"]
[White "Janaszak, Dawid"]
[Black "Cardoso Cardoso, Jose Gabriel"]
[WhiteFideId "1119206"]
[BlackFideId "4430492"]
[WhiteElo "2199"]
[BlackElo "2485"]
[Result "0-1"]
[Round "08"]
[TimeControl "180+1"]
[Date "2022.05.25"]
[WhiteClock "0:00:12"]
[BlackClock "0:00:24"]

1. e4 {[%clk 0:03:00]}  c5 {[%clk 0:02:44]} 2. Nc3 {[%clk 0:03:00]}  Nc6 {[%clk 0:02:42]} 3. Bb5 {[%clk 0:03:00]}  Nd4 {[%clk 0:02:41]} 4. Nf3 {[%clk 0:03:00]}  Nxb5 {[%clk 0:02:41]} 5. Nxb5 {[%clk 0:03:01]}  d6 {[%clk 0:02:37]} 6. d4 {[%clk 0:02:58]}  a6 {[%clk 0:02:28]} 7. Nc3 {[%clk 0:02:57]}  cxd4 {[%clk 0:02:29]} 8. Qxd4 {[%clk 0:02:56]}  e5 {[%clk 0:02:28]} 9. Qb4 {[%clk 0:02:55]}  h6 {[%clk 0:02:23]} 10. Be3 {[%clk 0:02:52]}  Be6 {[%clk 0:02:23]} 11. O-O-O {[%clk 0:02:41]}  Qc7 {[%clk 0:02:22]} 12. Bb6 {[%clk 0:02:31]}  Qc6 {[%clk 0:02:15]} 13. Nd5 {[%clk 0:02:28]}  Rc8 {[%clk 0:02:15]} 14. Kb1 {[%clk 0:02:07]}  Ne7 {[%clk 0:01:41]} 15. c4 {[%clk 0:01:47]}  Qxc4 {[%clk 0:01:37]} 16. Qxc4 {[%clk 0:01:29]}  Rxc4 {[%clk 0:01:37]} 17. Nc7+ {[%clk 0:01:29]}  Rxc7 {[%clk 0:01:37]} 18. Bxc7 {[%clk 0:01:30]}  Nc8 {[%clk 0:01:38]} 19. Rc1 {[%clk 0:01:25]}  Kd7 {[%clk 0:01:35]} 20. Rhd1 {[%clk 0:01:20]}  f6 {[%clk 0:01:35]} 21. Bb8 {[%clk 0:01:15]}  Be7 {[%clk 0:01:30]} 22. Rc7+ {[%clk 0:01:15]}  Ke8 {[%clk 0:01:28]} 23. Rxb7 {[%clk 0:01:14]}  f5 {[%clk 0:01:28]} 24. Nd2 {[%clk 0:01:09]}  d5 {[%clk 0:01:15]} 25. f3 {[%clk 0:00:56]}  dxe4 {[%clk 0:01:11]} 26. fxe4 {[%clk 0:00:57]}  Bf6 {[%clk 0:01:09]} 27. Re1 {[%clk 0:00:42]}  Ne7 {[%clk 0:00:55]} 28. exf5 {[%clk 0:00:33]}  Bxf5+ {[%clk 0:00:55]} 29. Ne4 {[%clk 0:00:32]}  Nc6 {[%clk 0:00:54]} 30. Kc1 {[%clk 0:00:28]}  Bg6 {[%clk 0:00:40]} 31. Nxf6+ {[%clk 0:00:22]}  gxf6 {[%clk 0:00:40]} 32. Rc7 {[%clk 0:00:21]}  Ne7 {[%clk 0:00:37]} 33. Ba7 {[%clk 0:00:19]}  Bf5 {[%clk 0:00:26]} 34. Bc5 {[%clk 0:00:19]}  Nd5 {[%clk 0:00:27]} 35. Rc6 {[%clk 0:00:18]}  Kf7 {[%clk 0:00:25]} 36. Rxa6 {[%clk 0:00:19]}  Rc8 {[%clk 0:00:25]} 37. Ra7+ {[%clk 0:00:19]}  Kg6 {[%clk 0:00:24]} 38. Kd2 {[%clk 0:00:15]}  Rxc5 {[%clk 0:00:24]} 39. Rc1 {[%clk 0:00:16]}  Rb5 {[%clk 0:00:24]} 40. b3 {[%clk 0:00:17]}  Nf4 {[%clk 0:00:24]} 41. g3 {[%clk 0:00:17]}  Rd5+ {[%clk 0:00:25]} 42. Ke3 {[%clk 0:00:14]}  Ng2+ {[%clk 0:00:24]} 43. Kf2 {[%clk 0:00:14]}  Rd2+ {[%clk 0:00:25]} 44. Kf1 {[%clk 0:00:14]}  Ne3+ {[%clk 0:00:24]} 45. Ke1 {[%clk 0:00:13]}  Rxh2 {[%clk 0:00:24]} 46. Rcc7 {[%clk 0:00:13]}  Bd3 {[%clk 0:00:23]} 47. Rg7+ {[%clk 0:00:12]}  Kf5 {[%clk 0:00:24]} 0-1


[Site "https://www.chess.com"]

[Event "Titled Tuesday Blitz May 24 Early 2022"]
[White "Kalogridis, Antonios"]
[Black "Djokic, Mihailo"]
[WhiteFideId "25833901"]
[BlackFideId "976440"]
[WhiteElo "1596"]
[BlackElo "2202"]
[Result "0-1"]
[Round "08"]
[TimeControl "180+1"]
[Date "2022.05.25"]
[WhiteClock "0:00:17"]
[BlackClock "0:01:06"]

1. Nc3 {[%clk 0:03:00]}  e5 {[%clk 0:02:57]} 2. d4 {[%clk 0:03:01]}  exd4 {[%clk 0:02:57]} 3. Qxd4 {[%clk 0:03:02]}  Nc6 {[%clk 0:02:57]} 4. Qd1 {[%clk 0:03:00]}  Nf6 {[%clk 0:02:57]} 5. g3 {[%clk 0:02:58]}  Bc5 {[%clk 0:02:57]} 6. Bg2 {[%clk 0:02:58]}  O-O {[%clk 0:02:57]} 7. Nf3 {[%clk 0:02:58]}  Re8 {[%clk 0:02:57]} 8. O-O {[%clk 0:02:54]}  d5 {[%clk 0:02:55]} 9. Bg5 {[%clk 0:02:52]}  d4 {[%clk 0:02:52]} 10. Na4 {[%clk 0:02:48]}  Bb6 {[%clk 0:02:44]} 11. c3 {[%clk 0:02:45]}  dxc3 {[%clk 0:02:37]} 12. Qxd8 {[%clk 0:02:45]}  Nxd8 {[%clk 0:02:31]} 13. Nxc3 {[%clk 0:02:36]}  c6 {[%clk 0:02:22]} 14. e4 {[%clk 0:02:29]}  Ng4 {[%clk 0:02:13]} 15. h3 {[%clk 0:02:23]}  Ne5 {[%clk 0:02:11]} 16. Nxe5 {[%clk 0:02:19]}  Rxe5 {[%clk 0:02:10]} 17. Bf4 {[%clk 0:02:20]}  Re8 {[%clk 0:02:09]} 18. Rad1 {[%clk 0:02:18]}  Ne6 {[%clk 0:02:08]} 19. Bc1 {[%clk 0:02:07]}  a5 {[%clk 0:02:04]} 20. Kh2 {[%clk 0:02:03]}  a4 {[%clk 0:02:00]} 21. a3 {[%clk 0:02:01]}  Bc7 {[%clk 0:01:58]} 22. f4 {[%clk 0:02:00]}  Nc5 {[%clk 0:01:52]} 23. Be3 {[%clk 0:01:57]}  Nb3 {[%clk 0:01:52]} 24. e5 {[%clk 0:01:52]}  Be6 {[%clk 0:01:51]} 25. Rfe1 {[%clk 0:01:47]}  g6 {[%clk 0:01:48]} 26. Ne4 {[%clk 0:01:40]}  Kg7 {[%clk 0:01:47]} 27. g4 {[%clk 0:01:37]}  Red8 {[%clk 0:01:45]} 28. Nf6 {[%clk 0:01:34]}  g5 {[%clk 0:01:43]} 29. Nh5+ {[%clk 0:01:25]}  Kf8 {[%clk 0:01:41]} 30. Kh1 {[%clk 0:01:20]}  gxf4 {[%clk 0:01:41]} 31. Bxf4 {[%clk 0:01:20]}  Rxd1 {[%clk 0:01:28]} 32. Rxd1 {[%clk 0:01:21]}  Rd8 {[%clk 0:01:28]} 33. Bh6+ {[%clk 0:01:19]}  Kg8 {[%clk 0:01:28]} 34. Nf6+ {[%clk 0:01:10]}  Kh8 {[%clk 0:01:28]} 35. Re1 {[%clk 0:01:06]}  Nc5 {[%clk 0:01:18]} 36. Nh5 {[%clk 0:00:45]}  Nd3 {[%clk 0:01:14]} 37. Rb1 {[%clk 0:00:38]}  Bxe5 {[%clk 0:01:11]} 38. Be4 {[%clk 0:00:30]}  Nf2+ {[%clk 0:01:11]} 39. Kg2 {[%clk 0:00:25]}  Nxe4 {[%clk 0:01:12]} 40. Re1 {[%clk 0:00:25]}  Bd5 {[%clk 0:01:12]} 41. Kf3 {[%clk 0:00:25]}  Bxb2 {[%clk 0:01:10]} 42. Kf4 {[%clk 0:00:20]}  Bxa3 {[%clk 0:01:08]} 43. Rxe4 {[%clk 0:00:19]}  Bxe4 {[%clk 0:01:08]} 44. Kxe4 {[%clk 0:00:20]}  Bb2 {[%clk 0:01:08]} 45. Kf5 {[%clk 0:00:18]}  Rd5+ {[%clk 0:01:07]} 46. Kf4 {[%clk 0:00:16]}  Rxh5 {[%clk 0:01:07]} 47. gxh5 {[%clk 0:00:15]}  a3 {[%clk 0:01:08]} 48. Bg7+ {[%clk 0:00:12]}  Kxg7 {[%clk 0:01:08]} 49. Kg4 {[%clk 0:00:13]}  a2 {[%clk 0:01:07]} 50. Kh4 {[%clk 0:00:14]}  a1=Q {[%clk 0:01:08]} 51. h6+ {[%clk 0:00:15]}  Kg6 {[%clk 0:01:07]} 52. Kg4 {[%clk 0:00:15]}  Qa4+ {[%clk 0:01:07]} 53. Kg3 {[%clk 0:00:15]}  Qb3+ {[%clk 0:01:07]} 54. Kh4 {[%clk 0:00:16]}  Qc4+ {[%clk 0:01:06]} 55. Kg3 {[%clk 0:00:16]}  Qd3+ {[%clk 0:01:07]} 56. Kh4 {[%clk 0:00:17]}  Qe4+ {[%clk 0:01:07]} 57. Kg3 {[%clk 0:00:18]}  Be5+ {[%clk 0:01:05]} 58. Kf2 {[%clk 0:00:17]}  Bd4+ {[%clk 0:01:05]} 59. Kf1 {[%clk 0:00:17]}  Qf3+ {[%clk 0:01:05]} 60. Ke1 {[%clk 0:00:17]}  Bc3# {[%clk 0:01:06]} 0-1


[Site "https://www.chess.com"]

[Event "Titled Tuesday Blitz May 24 Early 2022"]
[White "Keller, Peter"]
[Black "Domingo Nunez, Ruben"]
[WhiteFideId "1272105"]
[BlackFideId "22245570"]
[WhiteElo "2275"]
[BlackElo "2376"]
[Result "0-1"]
[Round "08"]
[TimeControl "180+1"]
[Date "2022.05.25"]
[WhiteClock "0:00:03"]
[BlackClock "0:00:14"]

1. e4 {[%clk 0:02:53]}  e6 {[%clk 0:02:58]} 2. d4 {[%clk 0:02:50]}  c5 {[%clk 0:02:59]} 3. d5 {[%clk 0:02:50]}  exd5 {[%clk 0:02:59]} 4. exd5 {[%clk 0:02:50]}  d6 {[%clk 0:02:59]} 5. Nc3 {[%clk 0:02:37]}  Nf6 {[%clk 0:03:00]} 6. h3 {[%clk 0:02:34]}  Be7 {[%clk 0:03:00]} 7. Nf3 {[%clk 0:02:34]}  O-O {[%clk 0:03:00]} 8. Bd3 {[%clk 0:02:35]}  Re8 {[%clk 0:03:00]} 9. O-O {[%clk 0:02:35]}  a6 {[%clk 0:03:00]} 10. a4 {[%clk 0:02:35]}  b6 {[%clk 0:02:59]} 11. Bf4 {[%clk 0:02:23]}  Bb7 {[%clk 0:02:59]} 12. Re1 {[%clk 0:02:23]}  Nbd7 {[%clk 0:02:53]} 13. Qd2 {[%clk 0:02:16]}  Qc7 {[%clk 0:02:41]} 14. b3 {[%clk 0:02:10]}  Bf8 {[%clk 0:02:40]} 15. Bc4 {[%clk 0:01:56]}  g6 {[%clk 0:02:33]} 16. Bh6 {[%clk 0:01:45]}  Rxe1+ {[%clk 0:02:19]} 17. Rxe1 {[%clk 0:01:44]}  Re8 {[%clk 0:02:20]} 18. Bxf8 {[%clk 0:01:39]}  Nxf8 {[%clk 0:02:12]} 19. Rxe8 {[%clk 0:01:22]}  Nxe8 {[%clk 0:02:13]} 20. Qf4 {[%clk 0:01:23]}  Qe7 {[%clk 0:02:07]} 21. Ne4 {[%clk 0:01:01]}  f5 {[%clk 0:02:01]} 22. Nc3 {[%clk 0:01:01]}  Nd7 {[%clk 0:02:01]} 23. g4 {[%clk 0:01:00]}  Ng7 {[%clk 0:01:14]} 24. Kg2 {[%clk 0:00:23]}  Nf6 {[%clk 0:01:00]} 25. Ne2 {[%clk 0:00:17]}  Kh8 {[%clk 0:00:36]} 26. Ng3 {[%clk 0:00:17]}  Nxd5 {[%clk 0:00:33]} 27. Qh6 {[%clk 0:00:09]}  fxg4 {[%clk 0:00:20]} 28. hxg4 {[%clk 0:00:08]}  Nf6 {[%clk 0:00:21]} 29. Qh3 {[%clk 0:00:05]}  Bc8 {[%clk 0:00:20]} 30. Ng5 {[%clk 0:00:04]}  Bxg4 {[%clk 0:00:19]} 31. Qh4 {[%clk 0:00:04]}  h5 {[%clk 0:00:16]} 32. Nf7+ {[%clk 0:00:03]}  Kh7 {[%clk 0:00:16]} 33. Qg5 {[%clk 0:00:03]}  Ng8 {[%clk 0:00:14]} 0-1


[Site "https://www.chess.com"]

[Event "Titled Tuesday Blitz May 24 Early 2022"]
[White "Kozak, Antoni"]
[Black "Bacrot, Etienne"]
[WhiteFideId "21832030"]
[BlackFideId "605506"]
[WhiteElo "2322"]
[BlackElo "2673"]
[Result "0-1"]
[Round "08"]
[TimeControl "180+1"]
[Date "2022.05.24"]
[WhiteClock "0:00:16"]
[BlackClock "0:00:39"]

1. Nf3 {[%clk 0:03:00]}  d5 {[%clk 0:02:59]} 2. e3 {[%clk 0:02:59]}  Nf6 {[%clk 0:02:59]} 3. c4 {[%clk 0:02:57]}  e6 {[%clk 0:02:58]} 4. b3 {[%clk 0:02:54]}  b6 {[%clk 0:02:58]} 5. Bb2 {[%clk 0:02:53]}  Bb7 {[%clk 0:02:58]} 6. g3 {[%clk 0:02:47]}  dxc4 {[%clk 0:02:56]} 7. bxc4 {[%clk 0:02:47]}  Nbd7 {[%clk 0:02:55]} 8. Bg2 {[%clk 0:02:43]}  e5 {[%clk 0:02:39]} 9. O-O {[%clk 0:02:36]}  e4 {[%clk 0:02:39]} 10. Nd4 {[%clk 0:02:17]}  Nc5 {[%clk 0:02:23]} 11. f3 {[%clk 0:02:03]}  Qd7 {[%clk 0:02:16]} 12. fxe4 {[%clk 0:01:56]}  Bxe4 {[%clk 0:02:14]} 13. Bxe4 {[%clk 0:01:54]}  Nfxe4 {[%clk 0:02:13]} 14. d3 {[%clk 0:01:47]}  Ng5 {[%clk 0:02:06]} 15. Nc3 {[%clk 0:01:38]}  O-O-O {[%clk 0:02:01]} 16. a4 {[%clk 0:01:33]}  Be7 {[%clk 0:01:48]} 17. a5 {[%clk 0:01:30]}  Bf6 {[%clk 0:01:47]} 18. axb6 {[%clk 0:01:14]}  cxb6 {[%clk 0:01:29]} 19. Nd5 {[%clk 0:01:12]}  Rhe8 {[%clk 0:01:20]} 20. h4 {[%clk 0:00:42]}  Rxe3 {[%clk 0:01:12]} 21. hxg5 {[%clk 0:00:24]}  Rxg3+ {[%clk 0:01:02]} 22. Kf2 {[%clk 0:00:24]}  Rxd3 {[%clk 0:00:58]} 23. gxf6 {[%clk 0:00:20]}  Rxd1 {[%clk 0:00:57]} 24. Rfxd1 {[%clk 0:00:20]}  gxf6 {[%clk 0:00:48]} 25. Nb5 {[%clk 0:00:20]}  Qf5+ {[%clk 0:00:48]} 26. Ke3 {[%clk 0:00:16]}  Re8+ {[%clk 0:00:43]} 27. Kd4 {[%clk 0:00:16]}  Qe5# {[%clk 0:00:39]} 0-1


[Site "https://www.chess.com"]

[Event "Titled Tuesday Blitz May 24 Early 2022"]
[White "Kucuksari, Kaan"]
[Black "Miszler, Levente"]
[WhiteFideId "6380166"]
[BlackFideId "763276"]
[WhiteElo "2305"]
[BlackElo "1966"]
[Result "1/2-1/2"]
[Round "08"]
[TimeControl "180+1"]
[Date "2022.05.25"]
[WhiteClock "0:00:57"]
[BlackClock "0:00:11"]

1. d4 {[%clk 0:03:00]}  Nf6 {[%clk 0:02:57]} 2. c4 {[%clk 0:03:01]}  e6 {[%clk 0:02:55]} 3. g3 {[%clk 0:03:02]}  Bb4+ {[%clk 0:02:53]} 4. Bd2 {[%clk 0:02:59]}  Be7 {[%clk 0:02:50]} 5. Bg2 {[%clk 0:02:58]}  O-O {[%clk 0:02:50]} 6. Nf3 {[%clk 0:02:58]}  d5 {[%clk 0:02:49]} 7. O-O {[%clk 0:02:58]}  c6 {[%clk 0:02:45]} 8. Qc2 {[%clk 0:02:56]}  Nbd7 {[%clk 0:02:44]} 9. Bg5 {[%clk 0:02:56]}  h6 {[%clk 0:02:43]} 10. Bxf6 {[%clk 0:02:57]}  Nxf6 {[%clk 0:02:43]} 11. Nbd2 {[%clk 0:02:58]}  Re8 {[%clk 0:02:41]} 12. e4 {[%clk 0:02:58]}  dxe4 {[%clk 0:02:41]} 13. Nxe4 {[%clk 0:02:59]}  Nxe4 {[%clk 0:02:41]} 14. Qxe4 {[%clk 0:03:00]}  Bf6 {[%clk 0:02:40]} 15. Ne5 {[%clk 0:03:00]}  Qc7 {[%clk 0:02:34]} 16. c5 {[%clk 0:02:59]}  Rd8 {[%clk 0:02:29]} 17. Rfd1 {[%clk 0:02:54]}  Bd7 {[%clk 0:02:11]} 18. b4 {[%clk 0:02:45]}  Be8 {[%clk 0:02:10]} 19. a4 {[%clk 0:02:44]}  a6 {[%clk 0:02:08]} 20. Nc4 {[%clk 0:02:36]}  a5 {[%clk 0:01:46]} 21. Nxa5 {[%clk 0:02:26]}  Rd7 {[%clk 0:01:34]} 22. Nc4 {[%clk 0:02:24]}  Rad8 {[%clk 0:01:34]} 23. Nd6 {[%clk 0:02:22]}  Be7 {[%clk 0:01:34]} 24. Nxe8 {[%clk 0:02:19]}  Rxe8 {[%clk 0:01:33]} 25. b5 {[%clk 0:02:19]}  cxb5 {[%clk 0:01:29]} 26. axb5 {[%clk 0:02:20]}  Red8 {[%clk 0:01:28]} 27. b6 {[%clk 0:02:13]}  Qc8 {[%clk 0:01:24]} 28. Ra7 {[%clk 0:02:14]}  Bxc5 {[%clk 0:01:19]} 29. Rc1 {[%clk 0:02:03]}  Rxd4 {[%clk 0:01:16]} 30. Qxb7 {[%clk 0:02:01]}  Qxb7 {[%clk 0:01:00]} 31. Rxb7 {[%clk 0:01:59]}  Rd1+ {[%clk 0:00:59]} 32. Rxd1 {[%clk 0:01:54]}  Rxd1+ {[%clk 0:01:00]} 33. Bf1 {[%clk 0:01:55]}  Rb1 {[%clk 0:00:54]} 34. Rb8+ {[%clk 0:01:51]}  Kh7 {[%clk 0:00:54]} 35. b7 {[%clk 0:01:48]}  Ba7 {[%clk 0:00:52]} 36. Kg2 {[%clk 0:01:45]}  g6 {[%clk 0:00:45]} 37. Bd3 {[%clk 0:01:38]}  Rb2 {[%clk 0:00:42]} 38. Rd8 {[%clk 0:01:30]}  Rxb7 {[%clk 0:00:41]} 39. Ra8 {[%clk 0:01:24]}  Kg7 {[%clk 0:00:27]} 40. Be4 {[%clk 0:01:21]}  Rc7 {[%clk 0:00:26]} 41. g4 {[%clk 0:01:14]}  Bd4 {[%clk 0:00:24]} 42. Ra4 {[%clk 0:01:12]}  e5 {[%clk 0:00:24]} 43. h4 {[%clk 0:01:09]}  Rd7 {[%clk 0:00:13]} 44. Bc6 {[%clk 0:01:06]}  Rc7 {[%clk 0:00:13]} 45. Be4 {[%clk 0:01:06]}  Rc3 {[%clk 0:00:11]} 46. Rb4 {[%clk 0:00:59]}  Rc7 {[%clk 0:00:11]} 47. Ra4 {[%clk 0:00:57]} 1/2-1/2


[Site "https://www.chess.com"]

[Event "Titled Tuesday Blitz May 24 Early 2022"]
[White "Li, Hui"]
[Black "Osiecki, Stanislaw"]
[WhiteFideId "15400310"]
[BlackFideId "1102990"]
[WhiteElo "1954"]
[BlackElo "2127"]
[Result "0-1"]
[Round "08"]
[TimeControl "180+1"]
[Date "2022.05.25"]
[WhiteClock "0:00:01"]
[BlackClock "0:00:11"]

1. e4 {[%clk 0:03:00]}  e6 {[%clk 0:02:55]} 2. d4 {[%clk 0:03:00]}  d5 {[%clk 0:02:55]} 3. Nd2 {[%clk 0:03:00]}  c5 {[%clk 0:02:54]} 4. exd5 {[%clk 0:03:00]}  exd5 {[%clk 0:02:50]} 5. Ngf3 {[%clk 0:03:00]}  cxd4 {[%clk 0:02:50]} 6. Nxd4 {[%clk 0:02:58]}  Nc6 {[%clk 0:02:50]} 7. Bb5 {[%clk 0:02:57]}  Bd7 {[%clk 0:02:50]} 8. N2f3 {[%clk 0:02:51]}  Bd6 {[%clk 0:02:48]} 9. O-O {[%clk 0:02:49]}  Nge7 {[%clk 0:02:48]} 10. Re1 {[%clk 0:02:46]}  O-O {[%clk 0:02:47]} 11. Bf1 {[%clk 0:02:39]}  Bg4 {[%clk 0:02:43]} 12. Be2 {[%clk 0:02:33]}  Nxd4 {[%clk 0:02:41]} 13. Nxd4 {[%clk 0:02:32]}  Bxe2 {[%clk 0:02:41]} 14. Qxe2 {[%clk 0:02:28]}  Nc6 {[%clk 0:02:40]} 15. Nxc6 {[%clk 0:02:07]}  bxc6 {[%clk 0:02:39]} 16. Bd2 {[%clk 0:01:45]}  Qc7 {[%clk 0:02:33]} 17. g3 {[%clk 0:01:37]}  Bc5 {[%clk 0:02:26]} 18. Rad1 {[%clk 0:01:29]}  Qb6 {[%clk 0:02:23]} 19. b3 {[%clk 0:01:23]}  h6 {[%clk 0:02:21]} 20. Be3 {[%clk 0:01:16]}  a5 {[%clk 0:02:16]} 21. c4 {[%clk 0:00:58]}  d4 {[%clk 0:02:10]} 22. Bf4 {[%clk 0:00:43]}  Rfd8 {[%clk 0:01:51]} 23. Qg4 {[%clk 0:00:41]}  Kh8 {[%clk 0:01:45]} 24. Qf5 {[%clk 0:00:38]}  Qa7 {[%clk 0:01:26]} 25. Rd3 {[%clk 0:00:31]}  Re8 {[%clk 0:01:23]} 26. Re5 {[%clk 0:00:22]}  Rxe5 {[%clk 0:01:20]} 27. Bxe5 {[%clk 0:00:22]}  Rd8 {[%clk 0:01:11]} 28. h4 {[%clk 0:00:18]}  Qe7 {[%clk 0:00:58]} 29. Kg2 {[%clk 0:00:07]}  f6 {[%clk 0:00:57]} 30. Bf4 {[%clk 0:00:07]}  g5 {[%clk 0:00:54]} 31. hxg5 {[%clk 0:00:06]}  hxg5 {[%clk 0:00:54]} 32. Bc1 {[%clk 0:00:06]}  Kg7 {[%clk 0:00:50]} 33. Bb2 {[%clk 0:00:04]}  Qd6 {[%clk 0:00:36]} 34. Bc1 {[%clk 0:00:04]}  Rh8 {[%clk 0:00:29]} 35. Rf3 {[%clk 0:00:03]}  Qe7 {[%clk 0:00:26]} 36. Bxg5 {[%clk 0:00:02]}  fxg5 {[%clk 0:00:18]} 37. Rd3 {[%clk 0:00:02]}  Rf8 {[%clk 0:00:13]} 38. Qg4 {[%clk 0:00:02]}  Qf6 {[%clk 0:00:12]} 39. Rf3 {[%clk 0:00:02]}  Qe7 {[%clk 0:00:10]} 40. Rxf8 {[%clk 0:00:01]}  Kxf8 {[%clk 0:00:10]} 41. Qf5+ {[%clk 0:00:01]}  Kg7 {[%clk 0:00:11]} 0-1


[Site "https://www.chess.com"]

[Event "Titled Tuesday Blitz May 24 Early 2022"]
[White "Manukian, Artak"]
[Black "Shuvalova, Polina"]
[WhiteFideId "13301373"]
[BlackFideId "24171760"]
[WhiteElo "2527"]
[BlackElo "2355"]
[Result "1-0"]
[Round "08"]
[TimeControl "180+1"]
[Date "2022.05.25"]
[WhiteClock "0:00:22"]
[BlackClock "0:00:02"]

1. e4 {[%clk 0:02:53]}  c5 {[%clk 0:02:59]} 2. Nf3 {[%clk 0:02:53]}  d6 {[%clk 0:03:00]} 3. Bb5+ {[%clk 0:02:52]}  Nd7 {[%clk 0:02:59]} 4. O-O {[%clk 0:02:50]}  Nf6 {[%clk 0:02:55]} 5. Re1 {[%clk 0:02:50]}  a6 {[%clk 0:02:53]} 6. Bd3 {[%clk 0:02:49]}  e6 {[%clk 0:02:48]} 7. a4 {[%clk 0:02:45]}  b6 {[%clk 0:02:43]} 8. c3 {[%clk 0:02:45]}  Bb7 {[%clk 0:02:42]} 9. Bc2 {[%clk 0:02:44]}  Be7 {[%clk 0:02:40]} 10. d4 {[%clk 0:02:44]}  O-O {[%clk 0:02:40]} 11. e5 {[%clk 0:02:41]}  Ne8 {[%clk 0:02:31]} 12. Qd3 {[%clk 0:02:24]}  g6 {[%clk 0:02:28]} 13. Bh6 {[%clk 0:02:24]}  Ng7 {[%clk 0:02:22]} 14. Nbd2 {[%clk 0:02:21]}  Rc8 {[%clk 0:02:15]} 15. Ne4 {[%clk 0:02:14]}  dxe5 {[%clk 0:01:47]} 16. dxe5 {[%clk 0:02:12]}  Qc7 {[%clk 0:01:46]} 17. Neg5 {[%clk 0:02:07]}  c4 {[%clk 0:01:33]} 18. Qe3 {[%clk 0:02:03]}  Bxf3 {[%clk 0:01:17]} 19. Nxf3 {[%clk 0:01:59]}  Rfd8 {[%clk 0:01:16]} 20. g4 {[%clk 0:01:49]}  Nc5 {[%clk 0:01:13]} 21. Nd4 {[%clk 0:01:46]}  Rd5 {[%clk 0:01:06]} 22. Re2 {[%clk 0:01:35]}  Rcd8 {[%clk 0:01:05]} 23. Rae1 {[%clk 0:01:27]}  Qb7 {[%clk 0:00:56]} 24. f4 {[%clk 0:01:23]}  b5 {[%clk 0:00:55]} 25. axb5 {[%clk 0:01:20]}  axb5 {[%clk 0:00:55]} 26. f5 {[%clk 0:01:13]}  exf5 {[%clk 0:00:38]} 27. gxf5 {[%clk 0:01:14]}  Nd3 {[%clk 0:00:38]} 28. Bxg7 {[%clk 0:00:58]}  Nxe1 {[%clk 0:00:38]} 29. Rxe1 {[%clk 0:00:53]}  Bc5 {[%clk 0:00:35]} 30. e6 {[%clk 0:00:46]}  Kxg7 {[%clk 0:00:33]} 31. f6+ {[%clk 0:00:46]}  Kxf6 {[%clk 0:00:22]} 32. Rf1+ {[%clk 0:00:43]}  Kg7 {[%clk 0:00:03]} 33. Rxf7+ {[%clk 0:00:44]}  Qxf7 {[%clk 0:00:03]} 34. exf7 {[%clk 0:00:44]}  Bxd4 {[%clk 0:00:03]} 35. cxd4 {[%clk 0:00:42]}  Kxf7 {[%clk 0:00:03]} 36. Qh3 {[%clk 0:00:34]}  Kg7 {[%clk 0:00:03]} 37. Qe6 {[%clk 0:00:32]}  Rxd4 {[%clk 0:00:03]} 38. Qe7+ {[%clk 0:00:33]}  Kh6 {[%clk 0:00:02]} 39. h4 {[%clk 0:00:29]}  R8d6 {[%clk 0:00:02]} 40. Be4 {[%clk 0:00:22]}  Rd1+ {[%clk 0:00:01]} 41. Kf2 {[%clk 0:00:22]}  R1d2+ {[%clk 0:00:02]} 42. Kf3 {[%clk 0:00:22]}  Rd1 {[%clk 0:00:02]} 43. Ke2 {[%clk 0:00:21]}  R1d2+ {[%clk 0:00:02]} 44. Ke3 {[%clk 0:00:21]}  Rd1 {[%clk 0:00:03]} 45. Qf8+ {[%clk 0:00:20]}  Kh5 {[%clk 0:00:03]} 46. Bf3+ {[%clk 0:00:20]}  Kxh4 {[%clk 0:00:03]} 47. Bxd1 {[%clk 0:00:21]}  Rxd1 {[%clk 0:00:03]} 48. Qf4+ {[%clk 0:00:21]}  Kh5 {[%clk 0:00:02]} 49. Qf3+ {[%clk 0:00:22]} 1-0


[Site "https://www.chess.com"]